bitfinex/quotes_SOLUSD_20220307
["timestamp","ask_amount","ask_price","bid_price","bid_amount"]
[1646630498845,58.83239507,83.295,83.23,14.68]
[1646630499045,1.62898166,83.292,83.23,14.68]
[1646630499245,1.62898166,83.29,83.23,14.68]
[1646630499445,6.005,83.289,83.23,14.68]
[1646630499645,1.62898166,83.288,83.23,14.68]
[1646630499844,6.005,83.287,83.23,14.68]
[1646630500246,6.005,83.289,83.23,14.68]
[1646630500446,128.83398166,83.289,83.21,14.68]
[1646630500650,64.41834697,83.277,83.21,14.68]
[1646630500848,1.62898166,83.274,83.194,2.83613526]
[1646630501046,121.2,83.272,83.194,2.83613526]
[1646630501254,1.62898166,83.27,83.2,18.025]
[1646630501449,6.006,83.271,83.204,2.83613526]
[1646630501647,1.62898166,83.276,83.204,2.83613526]
[1646630501648,22.6464,83.276,83.205,1.5]
[1646630501847,1.62898166,83.282,83.205,1.5]
[1646630502048,1.62898166,83.286,83.206,51.33262667]
[1646630502247,1.62898166,83.283,83.21,14.68]
[1646630502648,1.62898166,83.283,83.211,54.69593745]
[1646630502950,1.62898166,83.283,83.212,24.50381078]
[1646630503248,1.62898166,83.283,83.221,121.2]
[1646630503548,22.6464,83.298,83.23,14.68]
[1646630503751,1.62898166,83.297,83.223,22.6395]
[1646630503948,6.005,83.296,83.231,25.85699141]
[1646630504147,6.005,83.296,83.24,18.0161]
[1646630504347,1.62898166,83.297,83.24,32.6961]
[1646630504548,22.6464,83.298,83.241,28.69312667]
[1646630504949,1.62898166,83.301,83.242,28.69312667]
[1646630505148,1.12898166,83.311,83.242,28.69312667]
[1646630505350,1.12898166,83.311,83.25,18.0144]
[1646630505550,1.12898166,83.317,83.25,32.6944]
[1646630505751,6.003,83.316,83.251,2.83613526]
[1646630505950,121.2,83.33,83.251,2.83613526]
[1646630506151,49.56732168,83.328,83.251,2.83613526]
[1646630506355,6.003,83.327,83.251,2.83613526]
[1646630506753,49.56732168,83.328,83.251,2.83613526]
[1646630507052,6.003,83.327,83.26,18.0122]
[1646630507252,49.56732168,83.328,83.26,18.0122]
[1646630507852,6.002,83.327,83.26,18.0122]
[1646630508452,6.002,83.327,83.251,2.83613526]
[1646630508853,6.002,83.327,83.251,28.69312667]
[1646630509058,120.17089126,83.326,83.251,28.69312667]
[1646630509252,49.56732168,83.328,83.252,2.83613526]
[1646630509253,6.003,83.325,83.252,2.83613526]
[1646630509551,6.003,83.327,83.252,2.83613526]
[1646630510152,121.2,83.326,83.26,18.0122]
[1646630510355,6.002,83.325,83.252,2.83613526]
[1646630510953,127.73971409,83.324,83.236,25.85699141]
[1646630511154,121.2,83.322,83.236,25.85699141]
[1646630511354,121.2,83.322,83.23,14.68]
[1646630511556,121.2,83.32,83.23,14.68]
[1646630511757,121.2,83.318,83.23,14.68]
[1646630511955,58.09286556,83.315,83.23,40.53699141]
[1646630512155,6.003,83.314,83.23,43.37312667]
[1646630512355,121.2,83.313,83.23,61.39152667]
[1646630512556,121.2,83.311,83.23,61.39152667]
[1646630512758,121.2,83.309,83.23,61.39152667]
[1646630512964,28.8725,83.308,83.23,61.39152667]
[1646630513556,28.8725,83.308,83.23,35.53453526]
[1646630513757,28.8725,83.308,83.231,6.003]
[1646630514957,28.8725,83.308,83.24,18.0159]
[1646630515160,22.8695,83.308,83.241,6.003]
[1646630515357,22.8695,83.308,83.241,31.85999141]
[1646630515557,22.8695,83.308,83.241,8.83913526]
[1646630515757,22.8695,83.308,83.242,28.69312667]
[1646630515957,22.8695,83.308,83.243,6.003]
[1646630516158,6.003,83.307,83.243,2.83613526]
[1646630516358,22.8695,83.308,83.244,8.83913526]
[1646630516761,22.8695,83.308,83.245,2.83613526]
[1646630516962,22.8695,83.308,83.246,6.003]
[1646630517363,22.8695,83.308,83.247,2.83613526]
[1646630517563,22.8695,83.308,83.248,6.003]
[1646630517864,22.8695,83.308,83.248,8.83913526]
[1646630518263,22.8695,83.308,83.241,6.003]
[1646630518463,6.003,83.307,83.238,6.003]
[1646630520267,6.003,83.307,83.24,14.68]
[1646630520465,121.2,83.307,83.241,6.003]
[1646630520666,121.2,83.305,83.239,6.003]
[1646630520871,121.2,83.303,83.221,6.003]
[1646630521067,121.2,83.299,83.22,14.68]
[1646630521269,121.2,83.297,83.221,6.005]
[1646630521467,6.005,83.296,83.221,6.005]
[1646630521668,49.05083005,83.3,83.221,31.86199141]
[1646630522368,6.54138961,83.299,83.221,31.86199141]
[1646630522568,6.005,83.298,83.221,31.86199141]
[1646630522769,6.54138961,83.297,83.221,31.86199141]
[1646630522970,29.6387,83.296,83.221,31.86199141]
[1646630523170,29.6387,83.296,83.221,25.85699141]
[1646630524070,29.6387,83.296,83.22,14.68]
[1646630524273,17.98029542,83.295,83.218,6.005]
[1646630524616,121.2,83.284,83.218,6.005]
[1646630524805,121.2,83.284,83.195,2.83613526]
[1646630524806,121.2,83.282,83.195,2.83613526]
[1646630525008,0.23135405,83.281,83.183,23.3151]
[1646630525206,0.23135405,83.281,83.19,18.0282]
[1646630525207,121.2,83.28,83.19,18.0282]
[1646630525407,121.2,83.278,83.19,18.0282]
[1646630525607,121.2,83.276,83.191,2.83613526]
[1646630525807,6.007,83.275,83.191,28.69312667]
[1646630526108,82.70277291,83.283,83.2,14.68]
[1646630526307,82.70277291,83.283,83.2,32.7059]
[1646630526507,82.70277291,83.283,83.201,25.85699141]
[1646630526711,82.70277291,83.283,83.201,28.69312667]
[1646630526908,127.206,83.282,83.202,2.83613526]
[1646630527510,121.2,83.28,83.202,2.83613526]
[1646630527810,6.006,83.279,83.202,2.83613526]
[1646630528510,127.206,83.279,83.202,2.83613526]
[1646630529110,127.206,83.279,83.202,28.69312667]
[1646630529313,6.006,83.279,83.202,28.69312667]
[1646630529511,82.70277291,83.283,83.203,2.83613526]
[1646630529713,88.70877291,83.283,83.203,2.83613526]
[1646630529913,88.70877291,83.283,83.21,18.0239]
[1646630530112,88.70877291,83.283,83.21,14.68]
[1646630530311,121.2,83.282,83.21,14.68]
[1646630530512,6.006,83.281,83.203,2.83613526]
[1646630531112,121.2,83.282,83.203,2.83613526]
[1646630531313,6.006,83.281,83.203,2.83613526]
[1646630531514,5.33855491,83.278,83.191,2.83613526]
[1646630531720,124.47618035,83.276,83.191,2.83613526]
[1646630532013,27.98781379,83.277,83.17,14.68]
[1646630532014,4.92779643,83.269,83.17,14.68]
[1646630532217,170.42408608,83.267,83.171,2.83613526]
[1646630532416,170.42408608,83.267,83.18,25.85699141]
[1646630532614,170.42408608,83.267,83.19,14.68]
[1646630532814,121.2,83.265,83.19,14.68]
[1646630533015,121.2,83.265,83.19,40.53699141]
[1646630533215,121.2,83.265,83.191,2.83613526]
[1646630533421,6.007,83.264,83.191,2.83613526]
[1646630533617,121.2,83.265,83.191,2.83613526]
[1646630533817,24.1476,83.266,83.191,2.83613526]
[1646630534118,24.1476,83.266,83.191,28.69312667]
[1646630534618,6.007,83.265,83.192,2.83613526]
[1646630535118,6.007,83.265,83.2,18.0255]
[1646630535319,24.1476,83.266,83.2,18.0255]
[1646630535523,24.1476,83.266,83.201,2.83613526]
[1646630535724,6.007,83.265,83.201,2.83613526]
[1646630536125,6.007,83.265,83.202,25.85699141]
[1646630536622,6.007,83.265,83.203,2.83613526]
[1646630536822,83.47162073,83.266,83.203,2.83613526]
[1646630539223,83.47162073,83.266,83.203,28.69312667]
[1646630539628,83.47162073,83.266,83.204,2.83613526]
[1646630540024,24.1476,83.266,83.204,2.83613526]
[1646630541124,47.19286018,83.265,83.204,2.83613526]
[1646630543946,6.007,83.264,83.204,2.83613526]
[1646630546046,127.207,83.264,83.2,14.68]
[1646630546749,127.207,83.264,83.191,25.85699141]
[1646630547247,121.2,83.264,83.191,28.69312667]
[1646630550559,121.2,83.264,83.191,2.83613526]
[1646630550761,0.19097248,83.262,83.181,2.83613526]
[1646630550954,3.27618035,83.259,83.181,2.83613526]
[1646630551154,0.22395635,83.258,83.158,2.83613526]
[1646630551353,56.26008114,83.252,83.158,2.83613526]
[1646630551554,0.29432249,83.249,83.158,2.83613526]
[1646630551755,0.29432249,83.247,83.158,2.83613526]
[1646630551954,0.29432249,83.245,83.158,2.83613526]
[1646630552353,6.009,83.246,83.158,2.83613526]
[1646630552354,0.29432249,83.247,83.158,2.83613526]
[1646630552557,121.2,83.245,83.158,27.33994604]
[1646630552755,6.009,83.244,83.158,27.33994604]
[1646630552954,6.009,83.244,83.159,2.83613526]
[1646630553154,6.009,83.244,83.16,18.0341]
[1646630553355,6.009,83.244,83.159,2.83613526]
[1646630553955,6.009,83.247,83.159,2.83613526]
[1646630554156,6.009,83.247,83.16,18.0346]
[1646630554359,6.009,83.247,83.16,32.7146]
[1646630554560,6.009,83.247,83.161,71.40320219]
[1646630554759,48.2061,83.249,83.161,86.60792904]
[1646630554962,48.2061,83.249,83.162,50.69833745]
[1646630555159,48.2061,83.249,83.162,63.06692904]
[1646630555358,48.2061,83.249,83.163,63.06692904]
[1646630555558,6.009,83.248,83.163,63.06692904]
[1646630555756,48.2061,83.249,83.18,18.0283]
[1646630556258,48.2061,83.249,83.181,2.83613526]
[1646630556959,169.4061,83.249,83.181,2.83613526]
[1646630557558,48.2061,83.249,83.181,2.83613526]
[1646630558559,48.2061,83.249,83.18,18.0283]
[1646630558760,121.2,83.248,83.18,18.0283]
[1646630559161,48.2061,83.249,83.18,18.0283]
[1646630559361,169.4061,83.249,83.18,18.0283]
[1646630562064,6.008,83.248,83.18,18.0283]
[1646630562863,169.4061,83.249,83.18,18.0283]
[1646630567768,5.98596265,83.248,83.172,2.83613526]
[1646630567969,6.008,83.247,83.163,2.83613526]
[1646630568574,6.009,83.248,83.163,2.83613526]
[1646630569372,5.78479427,83.247,83.163,2.83613526]
[1646630569571,127.209,83.246,83.152,47.96131078]
[1646630569773,130.04513526,83.246,83.152,47.96131078]
[1646630569970,130.04513526,83.246,83.153,2.83613526]
[1646630571079,130.04513526,83.246,83.153,27.33994604]
[1646630571374,6.009,83.246,83.153,27.33994604]
[1646630571575,6.009,83.246,83.154,2.83613526]
[1646630571974,6.009,83.246,83.155,24.50381078]
[1646630572575,6.009,83.246,83.156,23.35839141]
[1646630572778,6.009,83.246,83.156,26.19452667]
[1646630572975,6.009,83.246,83.157,27.33994604]
[1646630573177,6.009,83.246,83.16,18.0343]
[1646630573578,6.009,83.246,83.16,57.21811078]
[1646630573780,6.009,83.246,83.16,80.57650219]
[1646630573977,6.009,83.247,83.161,2.83613526]
[1646630574177,48.2061,83.249,83.18,18.0267]
[1646630574178,6.009,83.248,83.18,18.0267]
[1646630574379,48.2061,83.249,83.19,14.68]
[1646630574580,48.2061,83.249,83.191,0.2173207]
[1646630574977,48.2061,83.249,83.191,3.05345596]
[1646630575380,48.2061,83.249,83.192,2.83613526]
[1646630575583,56.65756608,83.248,83.192,2.83613526]
[1646630578187,121.2,83.247,83.192,2.83613526]
[1646630579085,121.2,83.247,83.181,24.8683]
[1646630579385,4.45815082,83.246,83.168,20.64073526]
[1646630579585,127.209,83.245,83.16,14.68]
[1646630579791,121.2,83.243,83.16,14.68]
[1646630579990,6.009,83.242,83.16,14.68]
[1646630580193,6.009,83.242,83.161,23.5344]
[1646630581094,6.009,83.245,83.161,23.5344]
[1646630581307,121.2,83.243,83.161,23.5344]
[1646630581496,121.2,83.241,83.161,23.5344]
[1646630581694,6.009,83.24,83.161,23.5344]
[1646630582296,121.2,83.238,83.161,23.5344]
[1646630582596,6.009,83.237,83.161,23.5344]
[1646630583497,5.53047507,83.236,83.158,2.83613526]
[1646630583697,121.2,83.234,83.148,27.33994604]
[1646630583900,121.2,83.234,83.148,2.83613526]
[1646630584103,4.57795091,83.225,83.141,114.5]
[1646630584298,121.4833094,83.223,83.141,114.5]
[1646630584499,121.2,83.221,83.141,114.5]
[1646630584720,121.4833094,83.219,83.141,114.5]
[1646630584918,121.2,83.217,83.141,114.5]
[1646630585215,5.76053839,83.215,83.141,114.5]
[1646630585414,5.76053839,83.215,83.116,23.35839141]
[1646630585415,0.2833094,83.213,83.116,23.35839141]
[1646630585616,6.011,83.212,83.116,23.35839141]
[1646630586016,6.011,83.212,83.115,2.83613526]
[1646630586017,121.2,83.208,83.115,2.83613526]
[1646630586218,0.2833094,83.205,83.115,2.83613526]
[1646630586430,0.2833094,83.203,83.108,13.89365632]
[1646630586618,0.2833094,83.201,83.108,13.89365632]
[1646630586819,0.2833094,83.201,83.109,2.83613526]
[1646630587019,6.011,83.2,83.109,2.83613526]
[1646630587721,6.011,83.2,83.109,40.08818299]
[1646630588121,6.011,83.2,83.11,2.83613526]
[1646630588522,6.011,83.2,83.111,13.89365632]
[1646630588925,6.011,83.203,83.112,26.19452667]
[1646630589324,6.011,83.203,83.113,40.08818299]
[1646630589824,6.011,83.203,83.114,40.08818299]
[1646630590324,6.011,83.203,83.115,40.08818299]
[1646630590626,6.011,83.203,83.116,13.89365632]
[1646630590826,6.011,83.203,83.116,40.08818299]
[1646630591023,6.011,83.203,83.117,26.19452667]
[1646630591224,121.2,83.204,83.117,66.11906044]
[1646630591434,121.2,83.204,83.118,68.5457271]
[1646630591626,121.2,83.204,83.12,14.68]
[1646630592026,121.2,83.204,83.121,28.62119333]
[1646630592226,121.2,83.204,83.121,43.90151632]
[1646630592431,121.2,83.204,83.122,18.11645825]
[1646630592926,6.011,83.203,83.122,18.11645825]
[1646630593126,6.011,83.203,83.123,2.83613526]
[1646630594030,6.011,83.203,83.123,28.62119333]
[1646630594428,6.011,83.203,83.124,2.83613526]
[1646630595130,6.011,83.203,83.124,28.62119333]
[1646630595534,6.011,83.203,83.125,2.83613526]
[1646630595935,6.011,83.203,83.124,25.78505807]
[1646630596333,6.011,83.203,83.122,15.28032299]
[1646630597536,2.83613526,83.202,83.122,15.28032299]
[1646630597734,6.011,83.201,83.111,47.6399]
[1646630598034,6.011,83.201,83.11,41.06538106]
[1646630598234,2.83613526,83.2,83.11,41.06538106]
[1646630598434,6.011,83.199,83.11,41.06538106]
[1646630599033,2.83613526,83.198,83.111,25.78505807]
[1646630599237,4.1898935,83.196,83.111,25.78505807]
[1646630599440,6.011,83.195,83.112,15.28032299]
[1646630599836,121.2,83.194,83.112,41.06538106]
[1646630600035,6.013,83.193,83.113,2.83613526]
[1646630600236,6.013,83.193,83.113,18.11645825]
[1646630600436,121.2,83.191,83.114,25.78505807]
[1646630600639,121.2,83.191,83.114,43.90151632]
[1646630600839,121.2,83.191,83.115,18.11645825]
[1646630601039,121.2,83.191,83.115,43.90151632]
[1646630601241,121.2,83.191,83.12,18.0437]
[1646630601639,23.9512,83.192,83.121,43.90151632]
[1646630601842,6.011,83.216,83.13,14.68]
[1646630602039,6.011,83.234,83.13,14.68]
[1646630602239,6.011,83.234,83.131,15.28032299]
[1646630602439,6.011,83.208,83.131,43.90151632]
[1646630602637,6.011,83.208,83.132,2.83613526]
[1646630602837,127.211,83.208,83.132,43.90151632]
[1646630603037,127.211,83.208,83.133,15.28032299]
[1646630603237,6.011,83.234,83.133,43.90151632]
[1646630603440,47.2153,83.233,83.141,0.12164957]
[1646630603639,6.01,83.232,83.15,14.68]
[1646630603840,47.2153,83.233,83.151,0.19523153]
[1646630604040,47.2153,83.233,83.151,25.9802896]
[1646630604239,53.16470311,83.232,83.152,24.64421078]
[1646630604442,53.16470311,83.232,83.153,0.19954883]
[1646630604639,53.16470311,83.232,83.153,25.9846069]
[1646630604840,53.16470311,83.232,83.154,50.42926885]
[1646630605039,53.16470311,83.232,83.154,65.70959184]
[1646630605240,53.16470311,83.232,83.16,18.0307]
[1646630605539,53.16470311,83.232,83.16,58.49575807]
[1646630605739,53.16470311,83.232,83.161,15.28032299]
[1646630605946,53.16470311,83.232,83.161,18.11645825]
[1646630606141,53.16470311,83.232,83.162,2.83613526]
[1646630606543,53.16470311,83.232,83.163,15.28032299]
[1646630606945,53.16470311,83.232,83.164,2.83613526]
[1646630607243,53.16470311,83.232,83.17,18.0316]
[1646630607442,53.16470311,83.232,83.17,32.7116]
[1646630607745,53.16470311,83.232,83.171,2.83613526]
[1646630610344,121.2,83.231,83.171,2.83613526]
[1646630610545,127.51,83.231,83.171,2.83613526]
[1646630611365,127.51,83.231,83.17,14.68]
[1646630611366,5.99830656,83.23,83.157,2.83613526]
[1646630611568,6.01,83.229,83.143,2.83613526]
[1646630613467,127.21,83.229,83.14,14.68]
[1646630613667,127.21,83.229,83.137,25.78505807]
[1646630613867,127.21,83.229,83.131,2.83613526]
[1646630614266,127.21,83.229,83.128,15.28032299]
[1646630614469,6.01,83.229,83.128,15.28032299]
[1646630614670,6.01,83.229,83.128,18.11645825]
[1646630615068,6.01,83.229,83.129,25.78505807]
[1646630615473,121.2,83.227,83.128,2.83613526]
[1646630615671,121.2,83.225,83.128,2.83613526]
[1646630615871,6.011,83.224,83.128,2.83613526]
[1646630616170,121.2,83.223,83.128,2.83613526]
[1646630616370,5.21865237,83.221,83.128,2.83613526]
[1646630616572,18.0485,83.21,83.128,2.83613526]
[1646630616771,121.2,83.206,83.128,2.83613526]
[1646630616973,0.11893481,83.205,83.112,2.83613526]
[1646630617177,127.211,83.204,83.112,2.83613526]
[1646630617373,0.11893481,83.203,83.112,2.83613526]
[1646630617574,127.211,83.204,83.112,2.83613526]
[1646630617575,0.11893481,83.201,83.112,2.83613526]
[1646630617772,5.83470138,83.199,83.112,2.83613526]
[1646630617972,127.03470138,83.199,83.112,2.83613526]
[1646630618270,6.011,83.198,83.112,2.83613526]
[1646630618472,121.2,83.197,83.112,2.83613526]
[1646630618676,6.011,83.196,83.112,2.83613526]
[1646630619675,0.11981855,83.195,83.112,2.83613526]
[1646630619873,6.011,83.194,83.112,2.83613526]
[1646630620073,0.11981855,83.193,83.112,2.83613526]
[1646630620274,6.013,83.192,83.112,2.83613526]
[1646630620876,6.013,83.192,83.113,27.34505807]
[1646630621275,6.013,83.192,83.114,2.83613526]
[1646630621777,0.11981855,83.193,83.114,2.83613526]
[1646630622078,23.1049,83.198,83.115,39.92453377]
[1646630622476,23.1049,83.198,83.116,70.1057271]
[1646630622675,23.1049,83.198,83.13,14.68]
[1646630623076,121.2,83.197,83.13,14.68]
[1646630623578,121.2,83.197,83.13,17.51613526]
[1646630624176,6.011,83.211,83.13,35.55763526]
[1646630624377,6.011,83.218,83.132,0.12259818]
[1646630624581,24.6637,83.229,83.132,0.12259818]
[1646630624778,6.011,83.228,83.133,70.1057271]
[1646630625177,121.2,83.219,83.134,70.1057271]
[1646630625378,121.2,83.219,83.15,18.0341]
[1646630625578,121.2,83.206,83.15,14.68]
[1646630626677,127.211,83.206,83.15,14.68]
[1646630627178,127.211,83.206,83.135,18.11645825]
[1646630627580,127.211,83.206,83.136,2.83613526]
[1646630627779,127.211,83.206,83.14,14.68]
[1646630628580,121.2,83.206,83.14,14.68]
[1646630630488,121.2,83.206,83.136,2.83613526]
[1646630631086,121.2,83.204,83.136,2.83613526]
[1646630631786,6.011,83.203,83.123,42.62538106]
[1646630631986,121.2,83.201,83.123,15.28032299]
[1646630632186,6.011,83.2,83.123,15.28032299]
[1646630632786,4.011,83.2,83.123,15.28032299]
[1646630634188,4.011,83.2,83.12,14.68]
[1646630634387,4.011,83.2,83.112,2.0]
[1646630636289,121.2,83.199,83.112,2.0]
[1646630636489,4.26910583,83.196,83.115,75.37445807]
[1646630636691,121.2,83.194,83.115,75.37445807]
[1646630637109,121.2,83.192,83.115,75.37445807]
[1646630637289,121.2,83.19,83.115,75.37445807]
[1646630637492,121.2,83.188,83.115,75.37445807]
[1646630637893,6.013,83.187,83.116,24.64421078]
[1646630638091,121.2,83.192,83.12,14.68]
[1646630638494,121.2,83.192,83.121,51.98926885]
[1646630638691,121.2,83.192,83.121,54.82540411]
[1646630638893,121.2,83.192,83.122,27.34505807]
[1646630639094,121.2,83.192,83.122,30.18119333]
[1646630639499,121.2,83.192,83.123,27.34505807]
[1646630640097,121.2,83.192,83.123,30.18119333]
[1646630640496,121.2,83.192,83.124,27.34505807]
[1646630640899,121.2,83.192,83.124,30.18119333]
[1646630641695,121.2,83.192,83.124,2.83613526]
[1646630642096,121.2,83.19,83.124,2.83613526]
[1646630642295,121.2,83.188,83.124,2.83613526]
[1646630642496,121.2,83.186,83.124,2.83613526]
[1646630643096,4.81745377,83.185,83.117,15.28032299]
[1646630643298,121.2,83.181,83.112,4.83613526]
[1646630643498,121.2,83.179,83.112,2.0]
[1646630643697,4.91117854,83.176,83.112,2.0]
[1646630643897,121.2,83.174,83.112,2.0]
[1646630644097,121.2,83.172,83.112,2.0]
[1646630644296,121.2,83.17,83.098,27.34505807]
[1646630644498,122.82434429,83.17,83.089,2.83613526]
[1646630644920,5.55202318,83.167,83.09,27.34505807]
[1646630645122,121.2,83.165,83.09,27.34505807]
[1646630645323,121.2,83.165,83.09,30.18119333]
[1646630645518,121.2,83.163,83.09,30.18119333]
[1646630645719,121.2,83.161,83.09,30.18119333]
[1646630646018,121.2,83.159,83.09,30.18119333]
[1646630646218,121.2,83.155,83.09,30.18119333]
[1646630646419,121.2,83.153,83.09,30.18119333]
[1646630646618,121.2,83.151,83.09,30.18119333]
[1646630647021,121.2,83.149,83.09,30.18119333]
[1646630647621,121.2,83.149,83.091,27.34505807]
[1646630647823,22.8681,83.15,83.091,52.06232601]
[1646630648022,22.8681,83.15,83.092,27.5534032]
[1646630648221,22.8681,83.15,83.093,6.015]
[1646630648421,22.8681,83.15,83.093,76.19378426]
[1646630648623,121.2,83.149,83.093,76.19378426]
[1646630648821,121.2,83.149,83.094,54.89846127]
[1646630649220,121.2,83.149,83.095,30.18119333]
[1646630649423,22.8681,83.15,83.095,30.18119333]
[1646630649624,22.8681,83.15,83.094,24.71726794]
[1646630649625,22.8681,83.15,83.096,30.18119333]
[1646630650027,22.8681,83.15,83.097,30.18119333]
[1646630650426,22.8681,83.15,83.098,2.83613526]
[1646630650624,22.8681,83.15,83.098,30.18119333]
[1646630651022,22.8681,83.15,83.099,2.83613526]
[1646630652223,22.8681,83.15,83.1,6.015]
[1646630652626,22.8681,83.15,83.101,2.83613526]
[1646630655530,121.2,83.149,83.101,2.83613526]
[1646630655734,121.2,83.149,83.086,27.34505807]
[1646630655928,121.2,83.149,83.089,2.83613526]
[1646630656129,121.2,83.149,83.081,6.015]
[1646630656330,121.2,83.147,83.078,15.28032299]
[1646630656529,6.015,83.146,83.079,6.015]
[1646630656927,121.2,83.145,83.079,6.015]
[1646630657127,121.2,83.149,83.079,6.015]
[1646630657328,22.8681,83.15,83.079,6.015]
[1646630657529,22.8681,83.15,83.09,14.68]
[1646630657730,22.8681,83.15,83.091,6.015]
[1646630657929,22.8681,83.15,83.1,18.048]
[1646630658133,22.8681,83.15,83.101,6.015]
[1646630658531,22.8681,83.15,83.101,8.85113526]
[1646630658730,22.8681,83.15,83.102,2.83613526]
[1646630660134,22.8681,83.15,83.103,6.014]
[1646630660737,22.8681,83.15,83.104,2.83613526]
[1646630660934,22.8681,83.15,83.105,6.014]
[1646630661433,22.8681,83.15,83.104,2.83613526]
[1646630663737,121.2,83.149,83.104,2.83613526]
[1646630664147,121.2,83.149,83.094,2.83613526]
[1646630665942,121.2,83.149,83.095,6.015]
[1646630667541,121.2,83.149,83.094,2.83613526]
[1646630670346,121.2,83.149,83.083,2.83613526]
[1646630670747,121.2,83.147,83.083,2.83613526]
[1646630671148,121.2,83.145,83.083,2.83613526]
[1646630671447,127.05625937,83.145,83.079,15.28032299]
[1646630671650,121.2,83.143,83.079,15.28032299]
[1646630671848,121.2,83.141,83.079,15.28032299]
[1646630672046,121.2,83.139,83.079,15.28032299]
[1646630672246,121.2,83.137,83.079,15.28032299]
[1646630672447,121.2,83.135,83.079,15.28032299]
[1646630672647,121.2,83.133,83.079,15.28032299]
[1646630672848,53.80184409,83.13,83.079,15.28032299]
[1646630673147,53.80184409,83.13,83.074,2.83613526]
[1646630673148,121.2,83.129,83.074,2.83613526]
[1646630673348,121.2,83.129,83.079,27.34505807]
[1646630674148,121.2,83.129,83.074,2.83613526]
[1646630674348,121.2,83.129,83.075,6.016]
[1646630674549,121.2,83.127,83.075,6.016]
[1646630675149,121.2,83.127,83.074,2.83613526]
[1646630675551,5.54622078,83.126,83.065,2.83613526]
[1646630675751,121.2,83.124,83.065,2.83613526]
[1646630675953,6.017,83.125,83.065,2.83613526]
[1646630676155,6.017,83.127,83.065,2.83613526]
[1646630676351,53.80184409,83.13,83.065,28.36119333]
[1646630676552,53.80184409,83.13,83.066,20.73112388]
[1646630676750,53.80184409,83.13,83.07,14.68]
[1646630676950,6.016,83.15,83.08,18.0513]
[1646630677151,121.2,83.149,83.081,6.015]
[1646630677350,121.2,83.149,83.081,8.85113526]
[1646630677551,6.015,83.148,83.082,14.71412388]
[1646630677752,6.015,83.148,83.082,43.07531721]
[1646630677952,121.2,83.149,83.082,43.07531721]
[1646630677953,56.05294986,83.147,83.083,6.015]
[1646630678151,56.05294986,83.147,83.083,8.85113526]
[1646630678410,56.05294986,83.147,83.084,2.83613526]
[1646630678654,121.2,83.146,83.085,6.015]
[1646630678851,144.0887,83.146,83.085,6.015]
[1646630679052,144.0887,83.146,83.086,2.83613526]
[1646630679252,144.0887,83.146,83.087,6.015]
[1646630679652,144.0887,83.146,83.088,2.83613526]
[1646630679853,144.0887,83.146,83.089,6.015]
[1646630680253,144.0887,83.146,83.09,2.83613526]
[1646630681054,121.2,83.144,83.082,14.71412388]
[1646630681256,121.2,83.142,83.082,14.71412388]
[1646630681454,121.2,83.14,83.074,2.83613526]
[1646630681654,121.2,83.138,83.074,2.83613526]
[1646630681855,121.2,83.136,83.074,2.83613526]
[1646630682354,6.016,83.145,83.074,2.83613526]
[1646630682355,121.2,83.134,83.074,2.83613526]
[1646630684856,22.5594,83.135,83.074,2.83613526]
[1646630685958,121.2,83.134,83.074,2.83613526]
[1646630687558,121.2,83.132,83.074,2.83613526]
[1646630687756,6.016,83.133,83.074,2.83613526]
[1646630687957,22.5594,83.135,83.074,2.83613526]
[1646630689359,121.2,83.134,83.074,2.83613526]
[1646630690758,121.2,83.132,83.074,2.83613526]